fUSD/lending_fUSD_20240714
["ID","MTS","AMOUNT","RATE_DAILY","PERIOD"]
[332047336,1720942284454,-1065.31,0.00013917,2]
[332047337,1720942284463,-917.89,0.00013917,2]
[332047338,1720942284473,-500.0,0.00013917,2]
[332047339,1720942284482,-1854.76,0.00013917,2]
[332047340,1720942284492,-571.03,0.00013917,2]
[332047341,1720942284501,-457.34418359,0.00013917,2]
[332047342,1720942284512,-546.93,0.00013917,2]
[332047343,1720942284521,-1033.31,0.00013917,2]
[332047344,1720942284530,-500.0,0.00013917,2]
[332047345,1720942284539,-1443.94,0.00013917,2]
[332047346,1720942284548,-500.0,0.00013917,2]
[332047347,1720942284558,-500.0,0.00013917,2]
[332047348,1720942284568,-500.0,0.00013917,2]
[332047349,1720942284578,-500.0,0.00013917,2]
[332047350,1720942284587,-500.0,0.00013917,2]
[332047351,1720942284597,-500.0,0.00013917,2]
[332047352,1720942284606,-939.48,0.00013917,2]
[332047353,1720942284615,-690.83,0.00013917,2]
[332047354,1720942284625,-1434.02,0.00013917,2]
[332047355,1720942284634,-500.0,0.00013917,2]
[332047356,1720942284643,-220.930603,0.00013917,2]
[332047357,1720942284653,-500.0,0.00013917,2]
[332047358,1720942284662,-507.26,0.00013917,2]
[332047359,1720942284672,-500.0,0.00013917,2]
[332047360,1720942284681,-500.0,0.00013917,2]
[332047361,1720942284691,-220.930603,0.00013917,2]
[332047362,1720942284700,-500.0,0.00013917,2]
[332047363,1720942284709,-758.17,0.00013917,2]
[332047364,1720942284718,-500.0,0.00013917,2]
[332047365,1720942284727,-151.0,0.00013917,2]
[332047366,1720942284736,-645.47776914,0.00013917,2]
[332047367,1720942284745,-667.95,0.00013917,2]
[332047368,1720942284754,-458.3624,0.00013917,2]
[332047369,1720942284765,-500.0,0.00013917,2]
[332047370,1720942284774,-500.0,0.00013917,2]
[332047371,1720942284782,-500.0,0.00013917,2]
[332047372,1720942284791,-656.83,0.00013917,2]
[332047373,1720942284800,-458.3624,0.00013917,2]
[332047374,1720942284810,-500.0,0.00013917,2]
[332047375,1720942284819,-500.0,0.00013917,2]
[332047376,1720942284828,-151.0,0.00013917,2]
[332047377,1720942284837,-1121.81,0.00013917,2]
[332047378,1720942284846,-1360.96,0.00013917,2]
[332047379,1720942284855,-1333.12,0.00013917,2]
[332047380,1720942284864,-1041.25,0.00013917,2]
[332047381,1720942284873,-681.059833,0.00013917,2]
[332047382,1720942284882,-500.0,0.00013917,2]
[332047383,1720942284890,-1587.48,0.00013917,2]
[332047384,1720942284899,-681.059833,0.00013917,2]
[332047385,1720942284908,-721.7,0.00013917,2]
[332047386,1720942284917,-1189.67,0.00013917,2]
[332047387,1720942284926,-2094.35,0.00013917,2]
[332047388,1720942284935,-1454.73,0.00013917,2]
[332047389,1720942284944,-1367.52,0.00013917,2]
[332047390,1720942284953,-725.46,0.00013917,2]
[332047391,1720942284962,-564.4,0.00013917,2]
[332047392,1720942284971,-1181.0,0.00013917,2]
[332047393,1720942284980,-500.0,0.00013917,2]
[332047394,1720942284990,-500.0,0.00013917,2]
[332047395,1720942284999,-193.22,0.00013917,2]
[332047396,1720942285010,-500.0,0.00013917,2]
[332047397,1720942285020,-640.24,0.00013917,2]
[332047398,1720942285033,-500.0,0.00013917,2]
[332047399,1720942285043,-662.78,0.00013917,2]
[332047400,1720942285055,-500.0,0.00013917,2]
[332047401,1720942285065,-687.37,0.00013917,2]
[332047402,1720942285074,-500.0,0.00013917,2]
[332047403,1720942285084,-500.0,0.00013917,2]
[332047404,1720942285095,-1285.15,0.00013917,2]
[332047405,1720942285105,-239.866356,0.00013917,2]
[332047406,1720942285115,-1102.17,0.00013917,2]
[332047407,1720942285124,-1226.59,0.00013917,2]
[332047408,1720942285134,-652.74,0.00013917,2]
[332047409,1720942285144,-500.0,0.00013917,2]
[332047410,1720942285153,-529.57,0.00013917,2]
[332047411,1720942285163,-500.0,0.00013917,2]
[332047412,1720942285172,-204.07825179,0.00013917,2]
[332047413,1720942285183,-807.57,0.00013917,2]
[332047414,1720942285193,-727.14,0.00013917,2]
[332047415,1720942285202,-500.0,0.00013917,2]
[332047416,1720942285212,-151.0,0.00013917,2]
[332047417,1720942285221,-332.85711109,0.00013917,2]
[332047418,1720942285230,-1172.02,0.00013917,2]
[332047419,1720942285240,-500.0,0.00013917,2]
[332047420,1720942285249,-722.7,0.00013917,2]
[332047421,1720942285258,-500.0,0.00013917,2]
[332047422,1720942285267,-500.0,0.00013917,2]
[332047423,1720942285275,-151.552248,0.00013917,2]
[332047424,1720942285284,-258.6,0.00013917,2]
[332047425,1720942285294,-1133.18,0.00013917,2]
[332047426,1720942285303,-261.091657,0.00013917,2]
[332047427,1720942285312,-854.5,0.00013917,2]
[332047428,1720942285321,-771.88,0.00013917,2]
[332047429,1720942285330,-684.73,0.00013917,2]
[332047430,1720942285339,-261.091657,0.00013917,2]
[332047431,1720942285348,-542.04,0.00013917,2]
[332047432,1720942285357,-760.0,0.00013917,2]
[332047433,1720942285366,-1329.65,0.00013917,2]
[332047434,1720942285375,-671.57,0.00013917,2]
[332047435,1720942285384,-151.0,0.00013917,2]
[332047436,1720942285394,-500.0,0.00013917,2]
[332047437,1720942285403,-537.07,0.00013917,2]
[332047438,1720942285412,-998.05,0.00013917,2]
[332047439,1720942285421,-151.0,0.00013917,2]
[332047440,1720942285430,-151.0,0.00013917,2]
[332047441,1720942285439,-825.57,0.00013917,2]
[332047442,1720942285449,-500.0,0.00013917,2]
[332047443,1720942285458,-500.0,0.00013917,2]
[332047444,1720942285468,-917.72,0.00013917,2]
[332047445,1720942285478,-500.0,0.00013917,2]
[332047446,1720942285489,-982.29,0.00013917,2]
[332047447,1720942285500,-1029.31,0.00013917,2]
[332047448,1720942285511,-500.0,0.00013917,2]
[332047449,1720942285519,-951.65,0.00013917,2]
[332047450,1720942285528,-148.4505279,0.00013917,2]
[332047451,1720942286328,-500.0,0.00013808,2]
[332047452,1720942286338,-555.9094721,0.00013917,2]
[332047453,1720942286348,-151.0,0.00013917,2]
[332047454,1720942286357,-500.0,0.00013917,2]
[332047455,1720942286367,-151.0,0.00013917,2]
[332047456,1720942286376,-1431.59,0.00013917,2]
[332047457,1720942286386,-500.0,0.00013917,2]
[332047458,1720942286396,-500.0,0.00013917,2]
[332047459,1720942286406,-500.0,0.00013917,2]
[332047460,1720942286416,-656.52,0.00013917,2]
[332047461,1720942286426,-256.8930279,0.00013917,2]
[332047462,1720942286440,-628.4469721,0.00013917,2]
[332047463,1720942286452,-500.0,0.00013917,2]
[332047464,1720942286463,-932.27,0.00013917,2]
[332047465,1720942286474,-755.4,0.00013917,2]
[332047466,1720942286484,-500.0,0.00013917,2]
[332047467,1720942286495,-500.0,0.00013917,2]
[332047468,1720942286506,-564.8,0.00013917,2]
[332047469,1720942286519,-500.0,0.00013917,2]
[332047470,1720942286528,-709.14,0.00013917,2]
[332047471,1720942286538,-1330.71,0.00013917,2]
[332047472,1720942286549,-500.0,0.00013917,2]
[332047473,1720942286559,-500.0,0.00013917,2]
[332047474,1720942286568,-1039.28,0.00013917,2]
[332047475,1720942286578,-1414.71,0.00013917,2]
[332047476,1720942286587,-921.54,0.00013917,2]
[332047477,1720942286596,-1241.59,0.00013917,2]
[332047478,1720942286606,-1286.96,0.00013917,2]
[332047479,1720942286615,-500.0,0.00013917,2]
[332047480,1720942286624,-561.54,0.00013917,2]
[332047481,1720942286633,-500.0,0.00013917,2]
[332047482,1720942286643,-989.45,0.00013917,2]
[332047483,1720942286652,-577.66,0.00013917,2]
[332047484,1720942286661,-756.93,0.00013917,2]
[332047485,1720942286670,-500.0,0.00013917,2]
[332047486,1720942286679,-814.48,0.00013917,2]
[332047487,1720942286688,-757.05,0.00013917,2]
[332047488,1720942286697,-500.0,0.00013917,2]
[332047489,1720942286706,-671.61,0.00013917,2]
[332047490,1720942286716,-1128.18,0.00013917,2]
[332047491,1720942286725,-500.0,0.00013917,2]
[332047492,1720942286734,-935.07,0.00013917,2]
[332047493,1720942286743,-919.0,0.00013917,2]
[332047494,1720942286752,-500.0,0.00013917,2]
[332047495,1720942286762,-635.76,0.00013917,2]
[332047496,1720942286771,-500.0,0.00013917,2]
[332047497,1720942286781,-1320.51,0.00013917,2]
[332047498,1720942286791,-977.85,0.00013917,2]
[332047499,1720942286800,-709.37,0.00013917,2]
[332047500,1720942286809,-500.0,0.00013917,2]
[332047501,1720942286819,-2318.83,0.00013917,2]
[332047502,1720942286828,-1012.38,0.00013917,2]
[332047503,1720942286837,-541.82,0.00013917,2]
[332047504,1720942286846,-1185.29,0.00013917,2]
[332047505,1720942286855,-594.41,0.00013917,2]
[332047506,1720942286864,-1827.05,0.00013917,2]
[332047507,1720942286875,-500.0,0.00013917,2]
[332047508,1720942286884,-500.0,0.00013917,2]
[332047509,1720942286893,-940.12,0.00013917,2]
[332047510,1720942286902,-868.55,0.00013917,2]
[332047511,1720942286911,-1547.09,0.00013917,2]
[332047512,1720942286920,-1029.01,0.00013917,2]
[332047513,1720942286930,-1009.0,0.00013917,2]
[332047514,1720942286939,-500.0,0.00013917,2]
[332047515,1720942286949,-248.93474389,0.00013917,2]
[332047516,1720942286958,-1613.15,0.00013917,2]
[332047517,1720942286967,-500.0,0.00013917,2]
[332047518,1720942286977,-500.0,0.00013917,2]
[332047519,1720942286986,-500.0,0.00013917,2]
[332047520,1720942286995,-543.14,0.00013917,2]
[332047521,1720942287004,-590.61,0.00013917,2]
[332047522,1720942287015,-606.89,0.00013917,2]
[332047523,1720942287028,-525.26,0.00013917,2]
[332047524,1720942287037,-796.34,0.00013917,2]
[332047525,1720942287046,-1793.21,0.00013917,2]
[332047526,1720942287054,-500.0,0.00013917,2]
[332047527,1720942287064,-500.0,0.00013917,2]
[332047528,1720942287073,-1872.39,0.00013917,2]
[332047529,1720942287082,-836.83,0.00013917,2]
[332047530,1720942287091,-500.0,0.00013917,2]
[332047531,1720942287102,-549.08,0.00013917,2]
[332047532,1720942287112,-500.0,0.00013917,2]
[332047533,1720942287122,-500.0,0.00013917,2]
[332047534,1720942287131,-500.0,0.00013917,2]
[332047535,1720942287140,-1316.31,0.00013917,2]
[332047536,1720942287149,-789.42,0.00013917,2]
[332047537,1720942287158,-1199.78,0.00013917,2]
[332047538,1720942287167,-500.0,0.00013917,2]
[332047539,1720942287176,-500.0,0.00013917,2]
[332047540,1720942287186,-500.0,0.00013917,2]
[332047541,1720942287196,-500.0,0.00013917,2]
[332047542,1720942287207,-1565.64,0.00013917,2]
[332047543,1720942287217,-500.0,0.00013917,2]
[332047544,1720942287226,-500.0,0.00013917,2]
[332047545,1720942287236,-500.0,0.00013917,2]
[332047546,1720942287245,-2244.95,0.00013917,2]
[332047547,1720942287254,-616.69,0.00013917,2]
[332047548,1720942287265,-1968.59,0.00013917,2]
[332047549,1720942287275,-1020.94,0.00013917,2]
[332047550,1720942287284,-500.0,0.00013917,2]
[332047551,1720942287294,-647.92,0.00013917,2]
[332047552,1720942287303,-1449.59,0.00013917,2]
[332047553,1720942287313,-524.76,0.00013917,2]
[332047554,1720942287322,-1823.32,0.00013917,2]
[332047555,1720942287331,-825.21,0.00013917,2]
[332047556,1720942287341,-545.0,0.00013917,2]
[332047557,1720942287350,-500.0,0.00013917,2]
[332047558,1720942287359,-649.05,0.00013917,2]
[332047559,1720942287368,-1103.01,0.00013917,2]
[332047560,1720942287378,-630.87,0.00013917,2]
[332047561,1720942287387,-1526.18,0.00013917,2]
[332047562,1720942287396,-576.17,0.00013917,2]
[332047563,1720942287406,-500.0,0.00013917,2]
[332047564,1720942287415,-500.0,0.00013917,2]
[332047565,1720942287425,-633.98,0.00013917,2]
[332047566,1720942287435,-1073.62,0.00013917,2]
[332047567,1720942287444,-591.18,0.00013917,2]
[332047568,1720942287454,-541.87,0.00013917,2]
[332047569,1720942287464,-1702.2,0.00013917,2]
[332047570,1720942287473,-1266.32,0.00013917,2]
[332047571,1720942287484,-524.39,0.00013917,2]
[332047572,1720942287493,-500.0,0.00013917,2]
[332047573,1720942287503,-547.05,0.00013917,2]
[332047574,1720942287514,-500.0,0.00013917,2]
[332047575,1720942287524,-982.43,0.00013917,2]
[332047576,1720942287535,-500.0,0.00013917,2]
[332047577,1720942287544,-1368.37,0.00013917,2]
[332047578,1720942287554,-500.0,0.00013917,2]
[332047579,1720942287563,-500.0,0.00013917,2]
[332047580,1720942287573,-878.2,0.00013917,2]
[332047581,1720942287583,-151.0,0.00013917,2]
[332047582,1720942287594,-643.29023137,0.00013917,2]
[332047583,1720942287604,-521.67,0.00013917,2]
[332047584,1720942287614,-500.0,0.00013917,2]
[332047585,1720942287623,-1416.36,0.00013917,2]
[332047586,1720942287633,-927.78,0.00013917,2]
[332047587,1720942287643,-500.0,0.00013917,2]
[332047588,1720942287652,-702.0,0.00013917,2]
[332047589,1720942287662,-500.0,0.00013917,2]
[332047590,1720942287673,-500.0,0.00013917,2]
[332047591,1720942287684,-868.58,0.00013917,2]
[332047592,1720942287694,-3257.09,0.00013917,2]
[332047593,1720942287704,-500.0,0.00013917,2]
[332047594,1720942287714,-500.0,0.00013917,2]
[332047595,1720942287723,-500.0,0.00013917,2]
[332047596,1720942287733,-500.0,0.00013917,2]
[332047597,1720942287742,-442.8,0.00013917,2]
[332047598,1720942287752,-759.25,0.00013917,2]
[332047599,1720942287763,-500.0,0.00013917,2]
[332047600,1720942287773,-1159.67,0.00013917,2]
[332047601,1720942287783,-500.0,0.00013917,2]
[332047602,1720942287792,-500.0,0.00013917,2]
[332047603,1720942287803,-1177.72,0.00013917,2]
[332047604,1720942287814,-2483.26,0.00013917,2]
[332047605,1720942287824,-500.0,0.00013917,2]
[332047606,1720942287834,-500.0,0.00013917,2]
[332047607,1720942287844,-1063.23,0.00013917,2]
[332047608,1720942287854,-926.17,0.00013917,2]
[332047609,1720942287864,-500.0,0.00013917,2]
[332047610,1720942287873,-1974.25,0.00013917,2]
[332047611,1720942287883,-763.24,0.00013917,2]
[332047612,1720942287894,-500.0,0.00013917,2]
[332047613,1720942287904,-236.04490569,0.00013917,2]
[332047614,1720942287914,-985.59,0.00013917,2]
[332047615,1720942287924,-500.0,0.00013917,2]
[332047616,1720942287934,-500.0,0.00013917,2]
[332047617,1720942287944,-772.6,0.00013917,2]
[332047618,1720942287954,-151.0,0.00013917,2]
[332047619,1720942287964,-2774.12,0.00013917,2]
[332047620,1720942287975,-594.69,0.00013917,2]
[332047621,1720942287985,-1591.5,0.00013917,2]
[332047622,1720942287995,-500.0,0.00013917,2]
[332047623,1720942288004,-500.0,0.00013917,2]
[332047624,1720942288016,-500.0,0.00013917,2]
[332047625,1720942288029,-500.0,0.00013917,2]
[332047626,1720942288039,-564.58,0.00013917,2]
[332047627,1720942288048,-500.0,0.00013917,2]
[332047628,1720942288059,-706.32,0.00013917,2]
[332047629,1720942288070,-500.0,0.00013917,2]
[332047630,1720942288080,-1001.83,0.00013917,2]
[332047631,1720942288090,-500.0,0.00013917,2]
[332047632,1720942288100,-500.0,0.00013917,2]
[332047633,1720942288112,-1137.97,0.00013917,2]
[332047634,1720942288122,-1304.32,0.00013917,2]
[332047635,1720942288132,-500.0,0.00013917,2]
[332047636,1720942288142,-844.95,0.00013917,2]
[332047637,1720942288152,-716.3,0.00013917,2]
[332047638,1720942288162,-151.0,0.00013917,2]
[332047639,1720942288172,-500.0,0.00013917,2]
[332047640,1720942288181,-2781.05,0.00013917,2]
[332047641,1720942288191,-500.0,0.00013917,2]
[332047642,1720942288201,-512.29133969,0.00013917,2]
[332047643,1720942288212,-151.0,0.00013917,2]
[332047644,1720942288223,-500.0,0.00013917,2]
[332047645,1720942288233,-151.0,0.00013917,2]
[332047646,1720942288243,-500.0,0.00013917,2]
[332047647,1720942288253,-782.27,0.00013917,2]
[332047648,1720942288264,-1038.87,0.00013917,2]
[332047649,1720942288275,-546.01,0.00013917,2]
[332047650,1720942288286,-9706.57,0.00013917,2]
[332047651,1720942288296,-500.0,0.00013917,2]
[332047652,1720942288306,-500.0,0.00013917,2]
[332047653,1720942288317,-500.0,0.00013917,2]
[332047654,1720942288328,-151.0,0.00013917,2]
[332047655,1720942288338,-500.0,0.00013917,2]
[332047656,1720942288349,-500.0,0.00013917,2]
[332047657,1720942288359,-1641.41,0.00013917,2]
[332047658,1720942288369,-891.03,0.00013917,2]
[332047659,1720942288379,-1089.23,0.00013917,2]
[332047660,1720942288390,-567.63,0.00013917,2]
[332047661,1720942288400,-991.84,0.00013917,2]
[332047662,1720942288410,-911.79042944,0.00013918,2]
[332047663,1720942288421,-500.0,0.00013971,2]
[332047664,1720942288432,-500.0,0.00013971,2]
[332047665,1720942288442,-66904.3565907,0.00013972,2]
[332047666,1720942288458,-283.18441257,0.00013972,2]
[332047667,1720942288830,-300.0,0.00013646,2]
[332047668,1720942288840,-174.17,0.00013698,2]
[332047669,1720942288851,-500.0,0.00013698,2]
[332047670,1720942288861,-500.0,0.00013698,2]
[332047671,1720942288871,-500.0,0.00013698,2]
[332047672,1720942288881,-500.0,0.00013698,2]
[332047673,1720942288891,-500.0,0.00013698,2]
[332047674,1720942288901,-500.0,0.00013753,2]
[332047675,1720942288911,-500.0,0.00013753,2]
[332047676,1720942288921,-500.0,0.00013753,2]
[332047677,1720942288932,-500.0,0.00013753,2]
[332047678,1720942288943,-8876.52174999,0.00013972,2]
[332047679,1720942288955,-1801.94717962,0.00013972,2]
[332047680,1720942288967,-1559.92396429,0.00013972,2]
[332047681,1720942288991,-500.0,0.00013753,2]
[332047682,1720942289004,-500.0,0.00013808,2]
[332047683,1720942289014,-355.65800931,0.00013972,2]
[332047684,1720942289030,-4394.81242003,0.00013972,2]
[332047685,1720942289042,-1627.60836089,0.00013972,2]
[332047686,1720942289054,-542.39928832,0.00013972,2]
[332047687,1720942289067,-321.645,0.00013972,2]
[332047688,1720942289080,-1208.0,0.00013972,2]
[332047689,1720942289092,-580.76799923,0.00013972,2]
[332047690,1720942289105,-2175.10780721,0.00013972,2]
[332047691,1720942289118,-8675.03063147,0.00013972,2]
[332047692,1720942289427,-390.67842279,0.00013808,2]
[332047698,1720942367817,-516.0,0.00036027,30]
[332047699,1720942367841,-5000.0,0.00036027,120]
[332047700,1720942368105,-1000.0,0.00036027,30]
[332047701,1720942368130,-10036.0,0.00036027,120]
[332047702,1720942368155,-393.54543382,0.00036027,120]
[332047703,1720942368179,-6120.92836678,0.00036027,120]
[332047704,1720942368203,-10037.74920914,0.00036027,15]
[332047705,1720942368228,-5100.0,0.00036027,34]
[332047706,1720942368252,-42000.0,0.00036027,120]
[332047707,1720942368276,-281.73142069,0.00036027,60]
[332047708,1720942368300,-2471.13589139,0.00036027,120]
[332047709,1720942368323,-1000.0,0.00036027,120]
[332047710,1720942368347,-275.9560313,0.00036027,30]
[332047711,1720942368372,-4245.0,0.00036027,120]
[332047712,1720942368396,-2000.0,0.00036027,30]
[332047713,1720942368420,-2000.0,0.00036027,30]
[332047714,1720942368443,-2000.0,0.00036027,30]
[332047715,1720942368467,-869.37316132,0.00036027,120]
[332047716,1720942368491,-51988.96,0.00036027,30]
[332047717,1720942368515,-364142.10189063,0.00036027,30]
[332047718,1720942368540,-3675.56872869,0.00036027,30]
[332047719,1720942368563,-2000.0,0.00036027,30]
[332047720,1720942368587,-2000.0,0.00036027,30]
[332047721,1720942368611,-2000.0,0.00036027,30]
[332047722,1720942368634,-2000.0,0.00036027,30]
[332047723,1720942368658,-2000.0,0.00036027,30]
[332047724,1720942368682,-2000.0,0.00036027,30]
[332047725,1720942368706,-2000.0,0.00036027,30]
[332047726,1720942368730,-2000.0,0.00036027,30]
[332047727,1720942368754,-2000.0,0.00036027,30]
[332047728,1720942368783,-160.0,0.00036027,30]
[332047729,1720942368808,-10007.79199507,0.00036027,10]
[332047730,1720942368833,-5100.0,0.00036027,33]
[332047731,1720942368858,-2686.0,0.00036027,39]
[332047732,1720942368881,-191.0,0.00036027,30]
[332047733,1720942368905,-10000.0,0.00036027,30]
[332047734,1720942368929,-194.22392228,0.00036027,30]
[332047735,1720942368953,-424.58069398,0.00036027,120]
[332047736,1720942368977,-640.99074861,0.00036027,120]
[332047737,1720942369002,-159.59702672,0.00036027,15]
[332047738,1720942369025,-1844.46001925,0.00036027,120]
[332047739,1720942369051,-121743.83001551,0.00036027,120]
[332047740,1720942369076,-1200.0,0.00036027,120]
[332047741,1720942369103,-950.06463313,0.00036027,120]
[332047742,1720942369127,-1183.61706673,0.00036027,120]
[332047743,1720942369151,-3228.76854039,0.00036027,120]
[332047744,1720942369174,-7710.22062737,0.00036027,120]
[332047745,1720942369197,-233.46872716,0.00036027,120]
[332047746,1720942369224,-7589.63353204,0.00036027,120]
[332047747,1720942369248,-9531.04948203,0.00036027,120]
[332047748,1720942369272,-318.6913403,0.00036027,120]
[332047749,1720942369295,-172.62474169,0.00036027,120]
[332047750,1720942369319,-3345.65275653,0.00036027,120]
[332047751,1720942369346,-627.21041615,0.00036027,120]
[332047752,1720942369370,-4719.73903888,0.00036027,120]
[332047753,1720942369393,-13553.49107131,0.00036027,120]
[332047754,1720942369418,-1168505.27191899,0.00036027,120]
[332047755,1720942369442,-903.23641838,0.00036027,120]
[332047756,1720942369465,-227.36969216,0.00036027,120]
[332047757,1720942369490,-1219.98071671,0.00036027,120]
[332047758,1720942369515,-1245.49208363,0.00036027,120]
[332047759,1720942369538,-1837.42420568,0.00036027,120]
[332047760,1720942369562,-731.77485928,0.00036027,120]
[332047761,1720942369586,-5598.63015399,0.00036027,120]
[332047762,1720942369610,-15556.26056425,0.00036027,120]
[332047763,1720942369633,-538.88326818,0.00036027,120]
[332047764,1720942369656,-2810.59482752,0.00036027,30]
[332047765,1720942369680,-511.97673672,0.00036027,120]
[332047766,1720942369704,-182.01023927,0.00036027,30]
[332047767,1720942369731,-1657.89323034,0.00036027,120]
[332047768,1720942369758,-191.0,0.00036027,30]
[332047769,1720942369782,-187.1244129,0.00036027,30]
[332047770,1720942369809,-4456.71895806,0.00036027,60]
[332047771,1720942369834,-1216.723,0.00036027,48]
[332047772,1720942369859,-20000.0,0.00036027,90]
[332047773,1720942369883,-20000.0,0.00036027,60]
[332047774,1720942369907,-11750.87818505,0.00036027,30]
[332047777,1720942376033,-8249.12181495,0.00036027,30]
[332047778,1720942376060,-2499.53816367,0.00036027,120]
[332047779,1720942376083,-2155.71948168,0.00036027,120]
[332047780,1720942376107,-2000.0,0.00036027,90]
[332047781,1720942376132,-3028.30031394,0.00036027,120]
[332047782,1720942376154,-2095.56823546,0.00036027,120]
[332047783,1720942376176,-3399.46198575,0.00036027,120]
[332047784,1720942376198,-1705.41756026,0.00036027,120]
[332047785,1720942376221,-60469.83848816,0.00036027,120]
[332047786,1720942376243,-86333.34932213,0.00036027,120]
[332047787,1720942376265,-3673.9216415,0.00036027,120]
[332047788,1720942376288,-81573.84356286,0.00036027,120]
[332047789,1720942376310,-1909.79805152,0.00036027,120]
[332047790,1720942376333,-8022.13387252,0.00036027,120]
[332047791,1720942376357,-21068.42732296,0.00036027,120]
[332047792,1720942376380,-23177.51331098,0.00036027,120]
[332047793,1720942376402,-1639.18412202,0.00036027,120]
[332047794,1720942376425,-1698.16793169,0.00036027,120]
[332047795,1720942376447,-62400.0,0.00036027,120]
[332047796,1720942376469,-1538.0,0.00036027,120]
[332047797,1720942376492,-5100.0,0.00036027,32]
[332047798,1720942376514,-12246.05044817,0.00036027,40]
[332047799,1720942376536,-2002.5,0.00036027,120]
[332047800,1720942376559,-545.62614435,0.00036027,120]
[332047801,1720942376581,-1841.55413419,0.00036027,120]
[332047802,1720942376605,-1388.5,0.00036027,60]
[332047803,1720942376627,-1519.25,0.00036027,50]
[332047804,1720942376649,-1040.9085017,0.00036027,30]
[332047805,1720942376672,-1331.74284191,0.00036027,120]
[332047806,1720942376694,-282.77593492,0.00036027,60]
[332047807,1720942376716,-984.0,0.00036027,30]
[332047808,1720942376738,-238.99969512,0.00036027,90]
[332047809,1720942376761,-1255.33384392,0.00036027,30]
[332047810,1720942377008,-179.92611275,0.00036027,31]
[332047811,1720942377032,-18148.37429901,0.00036027,120]
[332047812,1720942377058,-301.50508279,0.00036027,120]
[332047813,1720942377082,-204.98999736,0.00036027,120]
[332047814,1720942377106,-268.73798693,0.00036027,30]
[332047815,1720942377133,-3934.0,0.00036027,99]
[332047816,1720942377156,-210.7583828,0.00036027,30]
[332047817,1720942377179,-2318.73162019,0.00036027,120]
[332047818,1720942377202,-103705.09529944,0.00036027,30]
[332047819,1720942377225,-154455.90312415,0.00036027,30]
[332047820,1720942377247,-129603.94427833,0.00036027,30]
[332047821,1720942377270,-7252.86889673,0.00036027,30]
[332047822,1720942377293,-50000.0,0.00036027,30]
[332047823,1720942377315,-33489.08709536,0.00036027,30]
[332047824,1720942377338,-54200.52577833,0.00036027,30]
[332047825,1720942377361,-60125.50529347,0.00036027,30]
[332047826,1720942377384,-31852.06810539,0.00036027,30]
[332047827,1720942377408,-437.64346875,0.00036027,120]
[332047828,1720942377431,-19836.16187209,0.00036027,120]
[332047829,1720942377454,-22373.62582831,0.00036027,30]
[332047830,1720942377477,-4202.98744545,0.00036027,30]
[332047831,1720942377499,-5238.28860806,0.00036027,30]
[332047832,1720942377522,-383.33316613,0.00036027,120]
[332047833,1720942377545,-6356.37432498,0.00036027,30]
[332047834,1720942377569,-5617.22968957,0.00036027,30]
[332047835,1720942377593,-8670.46334385,0.00036027,30]
[332047836,1720942377615,-2367.0,0.00036027,116]
[332047837,1720942377638,-800.0,0.00036027,31]
[332047838,1720942377666,-1427.17554464,0.00036027,60]
[332047839,1720942377690,-5100.0,0.00036027,31]
[332047840,1720942377713,-5000.0,0.00036027,120]
[332047841,1720942377736,-1159.89814476,0.00036027,120]
[332047842,1720942377759,-94858.82455523,0.00036027,120]